bitfinex/quotes_ETHUSD_20250428
["timestamp","ask_amount","ask_price","bid_price","bid_amount"]
[1745803036714,30.134937,1777.1,1776.8,0.823]
[1745803037015,18.302147,1777.1,1776.8,0.823]
[1745803037219,16.394267,1777.1,1776.8,0.823]
[1745803037539,16.414267,1777.1,1776.8,0.823]
[1745803037919,5.306,1777.2,1776.8,0.823]
[1745803038117,5.306,1777.2,1776.8,1.22100932]
[1745803040449,30.134937,1777.1,1776.8,0.823]
[1745803040942,3.0,1777.0,1776.7,0.7679]
[1745803041262,24.195344,1776.9,1776.7,0.7679]
[1745803041417,23.462362,1776.9,1776.7,0.7679]
[1745803041945,5.306,1777.2,1776.7,3.8408832]
[1745803042118,5.306,1777.2,1776.8,0.8177]
[1745803042450,19.701705,1777.1,1776.8,6.07]
[1745803042646,19.701705,1777.1,1776.4,0.7667]
[1745803042647,0.8059,1777.0,1776.4,0.7667]
[1745803042820,0.31213196,1777.1,1776.4,0.7667]
[1745803043145,5.306,1776.9,1776.5,0.7667]
[1745803044032,0.8059,1777.2,1776.5,0.7667]
[1745803044240,3.0,1777.0,1776.5,0.7667]
[1745803044426,5.307,1776.9,1776.5,0.7667]
[1745803045622,5.301,1777.1,1776.8,3.1570932]
[1745803045841,5.301,1777.2,1776.9,0.8162]
[1745803046155,23.833338,1777.1,1776.9,0.8162]
[1745803046353,19.10367,1777.1,1776.9,0.8162]
[1745803046555,18.708609,1777.1,1776.9,0.8162]
[1745803046719,18.950409,1777.1,1776.9,0.8162]
[1745803047852,3.0,1777.1,1776.5,0.8162]
[1745803048042,3.7523,1777.1,1776.5,0.8162]
[1745803049142,5.301,1777.0,1776.5,0.8162]
[1745803049456,5.301,1777.0,1776.5,3.9732932]
[1745803050351,5.301,1777.0,1776.4,9.2270932]
[1745803050543,5.301,1777.0,1776.4,10.22974252]
[1745803050870,5.301,1777.0,1776.6,3.1570932]
[1745803051021,5.301,1777.0,1776.7,0.7972]
[1745803051217,9.674586,1776.9,1776.7,0.7972]
[1745803051426,2.166407,1776.8,1776.7,0.7972]
[1745803051643,3.7523,1777.1,1776.7,0.7972]
[1745803051644,20.442351,1777.0,1776.7,0.7972]
[1745803051851,14.899753,1776.9,1776.7,0.7972]
[1745803052434,3.366,1776.9,1776.7,0.7972]
[1745803052623,14.045723,1776.9,1776.7,0.7972]
[1745803052826,5.302,1777.0,1776.7,0.7972]
[1745803053071,0.7899,1777.3,1776.8,3.1570932]
[1745803053236,5.302,1777.1,1777.0,3.1570932]
[1745803053438,2.496093,1777.1,1777.0,3.9577932]
[1745803053755,5.302,1777.3,1777.0,3.9577932]
[1745803054822,5.302,1777.4,1777.2,3.1570932]
[1745803055138,5.302,1777.5,1777.0,0.8007]
[1745803055318,3.0,1777.3,1777.0,0.8007]
[1745803055721,0.31304869,1777.4,1777.1,3.1570932]
[1745803055954,2.003293,1777.3,1777.1,3.1570932]
[1745803056155,3.31304869,1777.4,1777.1,3.1570932]
[1745803056359,3.0,1777.4,1777.1,3.1570932]
[1745803057061,15.004903,1777.3,1777.1,3.1570932]
[1745803057230,5.302,1777.5,1777.1,3.1570932]
[1745803057761,5.301,1777.5,1777.1,3.1570932]
[1745803058277,5.301,1777.5,1777.0,0.8007]
[1745803058457,3.0,1777.4,1777.0,0.8007]
[1745803058655,15.639752,1777.4,1777.0,0.8007]
[1745803058970,3.0,1777.4,1777.0,0.8007]
[1745803059129,3.0,1777.6,1777.1,3.1570932]
[1745803059487,5.301,1777.5,1777.3,0.7623]
[1745803059641,0.7914,1777.7,1777.3,0.7623]
[1745803059836,3.0,1777.5,1777.3,0.7623]
[1745803060236,3.0,1777.8,1777.3,3.9193932]
[1745803060570,16.894,1778.2,1777.5,3.1570932]
[1745803060769,4.0,1777.6,1777.5,3.9193932]
[1745803060937,5.301,1777.9,1777.5,3.9193932]
[1745803061369,1.12971588,1778.1,1777.7,3.1570932]
[1745803061589,5.301,1778.0,1777.7,3.1570932]
[1745803061734,3.31331588,1778.1,1777.7,3.1570932]
[1745803062242,8.61431588,1778.1,1777.7,3.1570932]
[1745803062437,8.301,1778.1,1777.7,3.1570932]
[1745803063770,5.301,1778.1,1777.8,0.817]
[1745803066251,13.644171,1778.0,1777.8,0.817]
[1745803066926,13.644171,1778.0,1777.7,3.1570932]
[1745803067354,5.301,1778.1,1777.7,3.1570932]
[1745803068569,11.665691,1778.0,1777.7,3.1570932]
[1745803069142,11.665691,1778.0,1777.6,0.8053]
[1745803069352,3.0,1778.0,1777.6,0.8053]
[1745803069873,5.301,1778.1,1777.6,0.8053]
[1745803070671,26.433295,1778.0,1777.6,0.8053]
[1745803071688,26.433295,1778.0,1777.6,1.44519059]
[1745803073383,3.0,1777.9,1777.6,1.44519059]
[1745803073585,3.0,1777.9,1777.6,0.8053]
[1745803073586,21.903053,1777.8,1777.6,0.8053]
[1745803073793,7.668461,1777.7,1777.4,0.63989059]
[1745803073977,0.3,1777.8,1777.4,0.63989059]
[1745803076189,3.7874,1777.9,1777.4,0.63989059]
[1745803080465,30.134937,1777.8,1777.3,6.8398]
[1745803080680,30.134937,1777.8,1777.0,5.301]
[1745803080681,0.8078,1777.6,1777.0,1.40959059]
[1745803081761,1.12079288,1777.6,1777.0,1.40959059]
[1745803082969,4.12079288,1777.6,1777.0,0.7697]
[1745803083165,0.8023,1777.5,1776.8,0.8306]
[1745803083493,3.0,1777.3,1776.8,0.8306]
[1745803083788,3.0,1777.1,1776.8,0.8306]
[1745803084595,30.134937,1777.0,1776.6,1.43299059]
[1745803084764,3.7567,1777.1,1776.6,1.43299059]
[1745803086015,3.7567,1777.1,1776.6,0.7931]
[1745803086520,0.8331,1776.8,1776.5,6.07]
[1745803086724,3.0,1776.6,1776.5,6.07]
[1745803086873,3.0,1776.6,1776.2,0.7924]
[1745803087280,3.0,1776.6,1776.3,0.63989059]
[1745803087613,23.501088,1776.5,1776.3,0.63989059]
[1745803087904,5.295,1776.8,1776.4,0.7907]
[1745803088080,5.295,1776.8,1776.5,0.63989059]
[1745803088290,3.0,1776.7,1776.5,0.63989059]
[1745803089531,3.0,1776.7,1776.4,0.7907]
[1745803089681,21.543012,1776.6,1776.4,0.7907]
[1745803090185,3.0,1776.5,1776.2,0.7907]
[1745803090411,3.8081,1776.7,1776.2,0.7907]
[1745803091883,3.8081,1776.7,1776.1,0.78870023]
[1745803091884,3.0,1776.5,1776.1,0.14880964]
[1745803092121,3.0,1776.3,1776.1,0.14880964]
[1745803092318,4.32229,1776.2,1776.1,0.14880964]
[1745803092614,2.20129,1776.2,1776.1,0.14880964]
[1745803092811,3.8081,1776.7,1776.1,0.78870023]
[1745803093031,16.896,1776.8,1776.5,0.63989059]
[1745803093184,16.896,1776.8,1776.2,0.7596]
[1745803093185,16.896,1776.8,1776.7,0.63989059]
[1745803093514,22.192,1776.8,1776.7,0.63989059]
[1745803093719,26.388153,1776.8,1776.7,0.63989059]
[1745803093894,22.192,1776.8,1776.7,0.63989059]
[1745803094094,19.131368,1776.8,1776.7,0.63989059]
[1745803094519,16.896,1776.8,1776.7,0.63989059]
[1745803094737,3.829,1777.3,1776.7,0.63989059]
[1745803094921,5.296,1776.9,1776.7,0.63989059]
[1745803095217,5.296,1777.0,1776.7,0.63989059]
[1745803095580,29.435048,1776.9,1776.7,0.63989059]
[1745803095800,9.932759,1776.9,1776.7,0.63989059]
[1745803095981,5.296,1777.0,1776.7,0.63989059]
[1745803096525,30.134937,1776.9,1776.7,0.63989059]
[1745803097029,10.925057,1776.9,1776.7,0.63989059]
[1745803097228,10.959037,1776.9,1776.7,0.63989059]
[1745803097526,6.089689,1776.9,1776.7,0.63989059]
[1745803097708,6.091689,1776.9,1776.7,0.63989059]
[1745803097913,6.091689,1776.9,1776.6,0.7596]
[1745803098696,5.296,1777.0,1776.6,0.7596]
[1745803098900,3.764,1776.9,1776.5,6.07]
[1745803099404,0.764,1776.8,1776.1,0.14880964]
[1745803099636,0.7532,1776.6,1776.1,0.14880964]
[1745803099797,3.0,1776.4,1776.1,0.14880964]
[1745803100002,14.623577,1776.3,1776.1,0.14880964]
[1745803102607,14.623577,1776.3,1776.1,0.78870023]
[1745803102608,10.450208,1776.3,1776.1,0.78870023]
[1745803102916,14.578358,1776.3,1776.1,0.14880964]
[1745803106142,0.7912,1777.4,1776.3,0.8311]
[1745803106314,0.7912,1777.4,1776.7,0.63989059]
[1745803106315,5.291,1777.3,1776.7,0.63989059]
[1745803106716,5.291,1777.3,1776.6,0.63989059]
[1745803107027,3.0,1777.2,1776.6,0.63989059]
[1745803107913,3.0,1777.2,1776.5,0.8311]
[1745803107914,3.0,1777.2,1776.8,0.63989059]
[1745803108114,3.0,1777.0,1776.8,0.63989059]
[1745803108340,2.423193,1776.9,1776.8,0.63989059]
[1745803108663,3.0,1777.0,1776.8,0.63989059]
[1745803108840,2.423193,1776.9,1776.8,0.63989059]
[1745803109060,30.134937,1777.1,1776.8,0.63989059]
[1745803109224,3.862062,1777.0,1776.8,0.63989059]
[1745803109412,3.0,1777.1,1776.8,0.63989059]
[1745803109814,5.221006,1777.0,1776.9,0.63989059]
[1745803110060,26.937227,1777.0,1776.9,0.63989059]
[1745803110260,2.3839,1777.0,1776.9,0.63989059]
[1745803110911,2.3839,1777.0,1776.7,1.46009059]
[1745803111111,5.291,1777.1,1776.7,1.46009059]
[1745803111334,3.0,1777.0,1776.7,0.8202]
[1745803111924,29.20663,1776.9,1776.7,0.8202]
[1745803112135,26.451658,1776.9,1776.7,0.8202]
[1745803112454,22.397742,1776.9,1776.7,0.8202]
[1745803112755,21.478963,1776.9,1776.7,0.8202]
[1745803112939,3.0,1777.0,1776.7,0.8202]
[1745803116972,30.134937,1776.9,1776.7,0.8202]
[1745803117458,30.134937,1776.9,1776.5,6.871]
[1745803117627,3.0,1777.0,1776.5,6.871]
[1745803118654,0.31212532,1776.9,1776.5,6.871]
[1745803118967,0.31212532,1776.9,1776.2,3.1628429]
[1745803118968,0.83,1776.8,1776.2,0.8259]
[1745803119164,38.424937,1776.7,1776.2,0.8259]
[1745803119465,33.44706232,1776.6,1776.1,6.21880964]
[1745803119800,5.29,1776.5,1776.2,3.9493429]
[1745803120063,5.29,1776.5,1776.2,0.7865]
[1745803120558,0.83,1776.8,1776.2,1.48703096]
[1745803120795,3.1628429,1777.4,1776.2,1.48703096]
[1745803120962,0.7788,1777.0,1776.3,0.8001]
[1745803121128,5.29,1776.9,1776.4,8.79218293]
[1745803121325,5.29,1777.1,1776.6,3.9629429]
[1745803123577,5.29,1777.1,1776.6,8.79157122]
[1745803123782,5.29,1777.1,1776.7,0.7978]
[1745803124666,3.0,1777.3,1776.7,0.7978]
[1745803124872,5.29,1777.2,1776.7,0.7978]
[1745803125783,5.29,1777.2,1776.7,1.80086429]
[1745803131590,5.29,1777.2,1776.7,2.44139946]
[1745803135393,5.29,1777.2,1776.7,1.43833517]
[1745803139979,30.134937,1777.1,1776.7,1.43833517]
[1745803141369,5.29,1777.2,1776.7,0.64053517]
[1745803141569,5.29,1777.2,1776.8,0.8116]
[1745803141901,5.7726,1777.7,1777.1,0.64053517]
[1745803142253,5.7726,1777.7,1777.6,0.8116]
[1745803142254,5.0,1777.7,1777.6,0.8116]
[1745803142364,11.633001,1777.7,1777.6,0.8116]
[1745803143170,9.863204,1777.7,1777.6,0.8116]
[1745803143566,16.895,1778.4,1777.6,12.50716255]
[1745803143567,5.282,1778.0,1777.6,12.50716255]
[1745803143761,5.282,1778.0,1777.9,0.64053517]
[1745803143972,0.7669,1777.7,1776.6,6.07]
[1745803144193,3.0,1777.9,1776.6,6.07]
[1745803144194,0.7669,1777.3,1776.6,6.07]
[1745803144380,0.7669,1777.3,1776.4,6.83031719]
[1745803144381,3.0,1777.1,1776.4,6.83031719]
[1745803144700,3.0,1777.1,1776.4,8.18440243]
[1745803144899,3.0,1777.1,1776.5,0.64053517]
[1745803145306,3.0,1777.1,1776.7,0.64053517]
[1745803145461,3.0,1777.1,1776.6,0.8182]
[1745803147197,30.134937,1777.0,1776.6,0.8182]
[1745803147377,1.10963868,1776.9,1776.4,0.7627]
[1745803147581,27.631582,1776.8,1776.4,0.7627]
[1745803147778,0.31223868,1776.7,1776.4,0.7627]
[1745803147977,12.377257,1776.6,1776.4,0.7627]
[1745803148572,8.997352,1776.6,1776.4,0.7627]
[1745803149104,30.134937,1776.8,1776.4,0.7627]
[1745803150647,0.31250052,1776.7,1776.4,0.7627]
[1745803150809,10.407708,1776.6,1776.4,0.7627]
[1745803151606,30.134937,1776.8,1776.4,0.7627]
[1745803152397,0.31244668,1776.7,1776.4,0.7627]
[1745803152597,10.249872,1776.6,1776.4,0.7627]
[1745803152794,0.31244668,1776.7,1776.4,0.7627]
[1745803153108,16.405326,1776.6,1776.4,0.7627]
[1745803153682,28.706583,1776.7,1776.4,0.7627]
[1745803153883,5.283,1776.8,1776.4,1.44597]
[1745803154085,3.0,1776.9,1776.4,1.44597]
[1745803154289,3.0,1776.9,1776.4,0.68327]
[1745803154476,3.0,1776.9,1776.5,0.7966]
[1745803155809,8.283,1777.1,1776.5,0.7966]
[1745803156508,0.31261309,1777.0,1776.5,0.7966]
[1745803157339,0.31261309,1776.9,1776.5,0.7966]
[1745803157610,0.31261309,1776.9,1776.5,6.07]
[1745803157780,0.31261309,1776.9,1776.7,0.796]
[1745803157980,3.31261309,1777.2,1776.7,0.796]
[1745803158707,0.31261309,1777.2,1776.7,0.796]
[1745803159118,0.31261309,1777.1,1776.7,0.796]
[1745803159811,0.31261309,1777.2,1776.7,0.796]
[1745803161015,5.0,1777.4,1777.0,0.784]
[1745803161235,5.0,1777.4,1777.1,0.784]
[1745803161411,4.0,1777.2,1777.1,6.31254534]
[1745803161596,4.0,1777.2,1777.1,7.09654534]
[1745803161799,3.02548591,1777.7,1777.2,5.62681521]
[1745803162038,0.02548591,1777.7,1777.5,0.7771]
[1745803162335,30.962837,1776.9,1776.4,7.53037]
[1745803162553,5.283,1776.8,1776.4,6.8471]
[1745803162738,5.283,1776.8,1776.6,4.91791253]
[1745803162739,5.5957071,1776.8,1776.6,4.91791253]
[1745803162914,3.595145,1776.7,1776.6,4.91791253]
[1745803163530,3.3208371,1776.7,1776.6,4.91791253]
[1745803163731,0.3127071,1776.7,1776.6,4.91791253]
[1745803163939,0.3127071,1776.7,1776.6,5.40970378]
[1745803164614,3.0,1776.9,1776.7,0.7843]
[1745803164815,3.0,1777.1,1776.7,0.7843]
[1745803165505,8.283,1777.2,1776.7,0.7843]
[1745803165701,5.283,1777.2,1776.8,6.8938]
[1745803165906,5.283,1777.5,1777.0,0.8238]
[1745803166208,3.0,1777.4,1777.0,0.8238]
[1745803166535,0.31264019,1777.3,1777.0,0.8238]
[1745803167423,5.283,1777.5,1777.0,0.8238]
[1745803168640,5.283,1777.5,1777.1,6.07]
[1745803168842,5.283,1777.5,1777.2,1.3918]
[1745803169144,0.02548591,1777.7,1777.3,0.7848]
[1745803170119,0.02548591,1777.7,1777.4,9.23263242]
[1745803170316,0.02548591,1777.7,1777.5,0.7848]
[1745803170846,0.02548591,1777.7,1777.6,6.07]
[1745803171015,0.02548591,1777.7,1777.6,7.4618]
[1745803172108,0.02548591,1777.7,1777.6,16.24999497]
[1745803172373,0.02548591,1777.7,1777.6,19.24999497]
[1745803172526,0.02548591,1777.7,1777.6,19.61423168]
[1745803172840,53.170687,1778.5,1778.1,0.8052]
[1745803172841,52.404487,1778.5,1778.1,0.8052]
[1745803179164,52.404487,1778.5,1778.0,0.36415476]
[1745803179165,30.907737,1778.4,1778.0,0.36415476]
[1745803179363,30.134937,1778.3,1778.0,0.36415476]
[1745803179664,27.149808,1778.3,1778.0,0.36415476]
[1745803179834,30.134937,1778.3,1778.0,0.36415476]
[1745803181236,3.0,1778.2,1778.0,0.36415476]
[1745803181555,18.67276,1778.1,1778.0,0.36415476]
[1745803181719,17.514958,1778.1,1778.0,0.36415476]
[1745803181920,16.769965,1778.1,1778.0,0.36415476]
[1745803182359,1.0566,1778.1,1778.0,0.36415476]
[1745803183536,7.22453242,1778.1,1778.0,0.36415476]
[1745803183759,10.92453242,1778.1,1778.0,0.36415476]
[1745803184053,41.37063691,1778.1,1778.0,0.36415476]
[1745803186667,41.78257168,1778.1,1778.0,0.36415476]
[1745803188671,11.64763468,1778.1,1778.0,0.36415476]
[1745803189054,41.78257168,1778.1,1778.0,0.36415476]
[1745803189552,41.78257168,1778.1,1777.2,0.7913]
[1745803189553,0.7724,1777.9,1777.2,0.7913]
[1745803189798,3.7724,1777.6,1777.2,0.7913]
[1745803190460,3.7724,1777.6,1777.1,6.07]
[1745803190669,2.99,1777.5,1777.1,6.07]
[1745803190954,5.274,1777.4,1777.1,6.07]
[1745803191985,19.287184,1777.3,1777.1,6.07]
[1745803192883,5.274,1777.4,1777.1,6.07]
[1745803193046,29.513411,1777.3,1777.1,6.07]
[1745803193384,29.014411,1777.3,1777.1,6.07]
[1745803193584,3.0,1777.2,1776.8,0.7955]
[1745803193782,29.825611,1777.3,1776.7,0.39723667]
[1745803193783,30.134937,1777.1,1776.7,0.39723667]
[1745803193948,5.275,1777.0,1776.6,6.8655]
[1745803196284,5.275,1777.0,1776.6,6.8655]
[1745803196655,5.275,1777.0,1776.7,0.7796]
[1745803200091,5.27,1777.2,1776.7,0.7796]
[1745803200854,5.27,1777.2,1776.8,0.8183]
[1745803201258,3.0,1777.4,1776.8,0.8183]
[1745803201464,5.27,1777.3,1776.8,0.8183]
[1745803201656,5.27,1777.3,1776.8,1.45870603]
[1745803202585,5.27,1777.3,1776.8,0.8183]
[1745803202789,3.0,1777.4,1776.8,0.8183]
[1745803202977,5.27,1777.3,1776.8,0.8183]
[1745803204295,33.927537,1777.2,1776.8,0.8183]
[1745803204588,33.927537,1777.2,1776.6,6.8309]
[1745803204589,30.134937,1777.1,1776.6,6.8309]
[1745803204791,3.7926,1777.2,1776.6,6.8309]
[1745803204989,3.7926,1777.2,1776.7,0.68309]
[1745803205158,30.134937,1777.1,1776.7,0.68309]
[1745803205583,25.284184,1777.1,1776.7,0.68309]
[1745803205778,4.421316,1777.0,1776.7,0.68309]
[1745803205971,5.271,1777.1,1776.8,1.44970603]
[1745803206497,5.271,1777.1,1776.8,0.8093]
[1745803207107,33.134937,1777.0,1776.6,6.8858]
[1745803207319,3.7575,1777.0,1776.4,0.8158]
[1745803207595,0.64040603,1776.7,1776.2,0.8158]
[1745803207892,3.7575,1776.5,1776.0,6.8858]
[1745803210674,3.7575,1776.5,1776.0,6.07]
[1745803211077,34.134937,1776.4,1776.1,0.816]
[1745803211287,4.0,1776.4,1776.1,0.816]
[1745803211496,4.0,1776.4,1776.0,6.07]
[1745803211497,4.0,1776.4,1776.3,3.981435]
[1745803211667,5.271,1776.8,1776.3,0.816]
[1745803212695,22.168,1776.9,1776.4,5.62919278]
[1745803213000,22.168,1776.9,1776.5,1.37891928]
[1745803213202,22.168,1776.9,1776.5,0.816]
[1745803218383,30.134937,1776.8,1776.5,0.816]
[1745803218602,9.0785,1776.8,1776.3,6.896]
[1745803219102,0.3135205,1776.7,1776.3,6.896]
[1745803219614,0.3135205,1776.7,1776.1,0.826]
[1745803219913,0.3135205,1776.7,1775.9,6.896]
[1745803219914,3.0,1776.5,1775.9,6.896]
[1745803220204,5.5855205,1776.4,1775.9,6.896]
[1745803220404,3.0,1776.3,1775.9,6.896]
[1745803221008,0.3135205,1776.2,1775.9,6.896]
[1745803221213,3.85831,1776.1,1775.9,6.896]
[1745803221574,3.0,1776.3,1775.9,6.896]
[1745803221779,2.113467,1776.2,1775.9,7.5856]
[1745803222090,3.0,1776.3,1775.9,7.5856]
[1745803222496,8.398246,1776.2,1775.9,7.5856]
[1745803222689,8.398246,1776.2,1775.9,6.896]
[1745803222890,3.0,1776.1,1775.7,0.7849]
[1745803223102,35.71992541,1776.0,1775.5,0.7849]
[1745803223315,6.34188841,1776.0,1775.5,0.7849]
[1745803223883,6.76064118,1776.0,1775.5,0.7849]
[1745803224285,6.44765277,1776.0,1775.5,1.47039]
[1745803224495,6.0289,1776.0,1775.5,1.47039]
[1745803226136,5.273,1776.2,1775.8,0.818]
[1745803226502,23.401476,1776.1,1775.8,0.818]
[1745803226703,16.239227,1776.1,1775.8,0.818]
[1745803226902,7.911761,1776.0,1775.8,0.818]
[1745803227105,0.7905,1776.0,1775.5,0.7663]
[1745803228524,1.10403739,1776.0,1775.5,0.7663]
[1745803228822,30.134937,1775.9,1775.5,0.7663]
[1745803230105,6.8363,1775.4,1775.2,0.8259]
[1745803230325,0.8098,1775.7,1775.2,0.8259]
[1745803230326,30.134937,1775.6,1775.2,0.8259]
[1745803230636,30.134937,1775.6,1775.0,6.8959]
[1745803230795,0.31350775,1775.5,1775.0,6.8959]
[1745803231412,0.31350775,1775.5,1775.1,0.27823373]
[1745803231618,0.31350775,1775.6,1775.1,0.27823373]
[1745803232706,3.937335,1775.5,1775.1,0.27823373]
[1745803232903,0.7719,1775.3,1775.1,0.27823373]
[1745803233113,3.7719,1775.2,1775.1,0.27823373]
[1745803233326,4.08540775,1775.2,1775.1,0.27823373]
[1745803233897,1.08540775,1775.2,1775.1,0.27823373]
[1745803234225,5.08540775,1775.2,1775.1,0.27823373]
[1745803234427,10.35440775,1775.2,1775.1,0.27823373]
[1745803234625,10.0409,1775.2,1775.1,0.27823373]
[1745803235300,6.0409,1775.2,1775.1,0.27823373]
[1745803236100,30.134937,1775.2,1775.1,0.27823373]
[1745803236298,30.134937,1775.3,1775.1,0.27823373]
[1745803236692,31.032217,1775.3,1775.1,0.27823373]
[1745803236898,30.893537,1775.2,1775.0,6.07]
[1745803237097,33.134937,1775.1,1775.0,6.07]
[1745803237339,0.7586,1775.2,1775.0,6.07]
[1745803237545,0.7586,1775.2,1775.1,0.27344181]
[1745803238233,8.27,1775.2,1775.1,0.27344181]
[1745803238418,5.27,1775.2,1775.1,0.27344181]
[1745803238737,30.134937,1775.2,1775.1,0.27344181]
[1745803238939,5.27,1775.2,1775.1,0.27344181]
[1745803239907,6.0728,1775.2,1775.1,0.27344181]
[1745803240159,9.0728,1775.2,1775.1,0.27344181]
[1745803240849,9.38450876,1775.2,1775.1,0.27344181]
[1745803241046,13.80625187,1775.2,1775.1,0.27344181]
[1745803241275,13.79205187,1775.2,1775.1,0.27344181]
[1745803241460,13.79205187,1775.2,1775.1,0.27066769]
[1745803241665,0.8289,1775.0,1774.4,3.165435]
[1745803242043,0.8289,1775.0,1774.5,0.25195716]
[1745803242248,30.134937,1774.9,1774.5,0.25195716]
[1745803242471,5.271,1774.8,1774.5,0.25195716]
[1745803242949,30.134937,1774.7,1774.5,0.25195716]
[1745803243490,5.271,1774.8,1774.5,0.25195716]
[1745803243686,30.134937,1774.7,1774.5,0.25195716]
[1745803243898,7.442573,1774.6,1774.5,0.25195716]
[1745803244118,14.298761,1774.7,1774.5,0.25195716]
[1745803244265,5.271,1774.8,1774.5,0.25195716]
[1745803244266,5.271,1774.8,1774.6,3.933435]
[1745803244471,5.271,1774.8,1774.7,0.25121055]
[1745803245094,5.271,1774.8,1774.7,0.00302807]
[1745803245311,35.405937,1774.8,1774.5,3.165435]
[1745803245476,30.134937,1774.7,1774.5,3.165435]
[1745803245688,5.271,1774.8,1774.5,3.165435]
[1745803247216,2.271,1774.8,1774.5,3.165435]
[1745803247682,2.271,1774.8,1774.1,0.65041497]
[1745803247683,3.7616,1774.7,1774.1,4.59374997]
[1745803248695,3.7616,1774.7,1774.2,0.00334566]
[1745803248907,0.31166041,1774.6,1774.2,0.00334566]
[1745803249419,5.272,1774.7,1774.5,3.165435]
[1745803249831,5.272,1774.7,1774.6,0.00309157]
[1745803249995,29.37053,1774.7,1774.6,0.00309157]
[1745803250201,26.939733,1774.7,1774.6,0.00309157]
[1745803250717,27.837013,1774.7,1774.6,0.00309157]
[1745803251025,27.837013,1774.7,1773.9,0.42313266]
[1745803251026,3.55,1774.6,1773.4,2.8161622]
[1745803251186,0.55,1774.4,1773.2,6.81545541]
[1745803251387,3.0,1774.2,1773.2,6.81545541]
[1745803251592,0.64308603,1773.9,1773.3,0.1803211]
[1745803251798,0.8274,1773.6,1773.3,0.1803211]
[1745803252017,0.8274,1773.3,1773.1,2.86087101]
[1745803252234,5.272,1773.2,1772.8,2.86903084]
[1745803252524,5.272,1773.2,1773.0,0.64308603]
[1745803252842,30.134937,1773.1,1772.9,3.47733855]
[1745803253006,15.414853,1773.1,1773.0,0.64308603]
[1745803253213,20.17826,1773.1,1773.0,0.64308603]
[1745803253424,20.17826,1773.2,1773.0,0.64308603]
[1745803253613,20.17826,1773.2,1772.9,2.83425252]
[1745803253614,20.17826,1773.2,1772.9,6.00970857]
[1745803253834,20.17826,1773.2,1772.9,6.68854886]
[1745803254126,0.8274,1773.3,1772.9,6.68854886]
[1745803254339,29.085107,1773.2,1773.0,6.07]
[1745803254511,29.085107,1773.3,1773.0,6.07]
[1745803255096,29.085107,1773.3,1773.1,3.17545605]
[1745803255537,29.085107,1773.5,1773.2,3.0]
[1745803256226,0.79,1773.6,1773.2,3.0]
[1745803257119,0.79,1773.6,1773.1,3.17545605]
[1745803257120,1.10009046,1773.6,1773.1,3.0]
[1745803257941,1.10009046,1773.6,1773.0,6.07]
[1745803258240,1.10009046,1773.6,1773.1,3.18938038]
[1745803259045,0.8191,1773.5,1773.1,0.18938038]
[1745803260848,0.8191,1773.5,1773.1,3.05025139]
[1745803261170,0.31009046,1773.6,1773.2,12.73462041]
[1745803261328,5.409,1773.9,1773.5,3.0]
[1745803261649,6.2053,1774.0,1773.6,9.42914389]
[1745803261853,6.2053,1774.0,1773.6,6.25368784]
[1745803262015,6.2053,1774.0,1773.7,3.0]
[1745803262353,6.2053,1774.0,1773.8,0.18368817]
[1745803264755,3.99615605,1773.9,1773.2,8.95332041]
[1745803264928,0.8207,1773.8,1773.3,3.16806291]
[1745803265248,0.7705,1773.7,1773.3,0.16806291]
[1745803265455,5.41,1773.6,1773.3,3.16806291]
[1745803266134,0.7705,1773.5,1773.3,0.16806291]
[1745803266316,0.8123,1773.3,1772.5,2.88468548]
[1745803266522,6.2223,1773.2,1772.7,2.84267325]
[1745803266727,6.2223,1773.2,1772.9,2.83425252]
[1745803266958,6.2223,1773.2,1772.8,2.86903084]
[1745803267119,6.2223,1773.2,1773.0,2.8372039]
[1745803267320,6.2223,1773.2,1773.1,2.99891174]
[1745803268018,5.41,1773.2,1773.1,2.99891174]
[1745803268223,6.1632,1773.2,1773.1,2.99891174]
[1745803268523,6.68017343,1773.2,1773.1,0.13804073]
[1745803268720,0.9777,1773.1,1772.5,2.88468548]
[1745803268918,3.17545605,1772.7,1772.6,0.11447143]
[1745803269123,5.411,1772.7,1772.6,0.11447143]
[1745803269318,8.58645605,1772.7,1772.6,0.10734212]
[1745803269639,5.411,1772.7,1772.6,0.10734212]
[1745803269845,0.51697343,1773.1,1772.6,0.10734212]
[1745803270048,5.411,1772.7,1772.6,0.10734212]
[1745803270256,0.51697343,1773.1,1772.6,5.87289357]
[1745803270461,34.496107,1773.0,1772.9,3.0]
[1745803270625,29.085107,1773.0,1772.8,3.0]
[1745803270957,23.257219,1773.0,1772.8,11.38152305]
[1745803271154,8.226304,1772.9,1772.8,12.15402305]
[1745803271360,24.23121114,1773.6,1773.1,5.83650863]
[1745803271533,22.343,1773.6,1773.1,5.83650863]
[1745803271922,22.343,1773.6,1773.2,3.0]
[1745803272417,22.343,1773.6,1773.3,0.10899288]
[1745803273034,6.0153,1774.1,1773.5,3.0]
[1745803273254,5.411,1774.0,1773.7,3.0]
[1745803273651,5.411,1774.0,1773.8,0.10341327]
[1745803273865,27.116507,1773.9,1773.8,0.10341327]
[1745803274072,27.116507,1773.9,1773.7,3.0]
[1745803274368,7.809936,1773.9,1773.7,12.16100546]
[1745803274540,7.809936,1773.9,1773.7,13.51880546]
[1745803274741,5.411,1774.0,1773.7,9.8778]
[1745803274974,5.411,1774.0,1773.7,9.07]
[1745803275865,5.411,1774.2,1773.7,9.07]